fUSD/lending_fUSD_20250207
["ID","MTS","AMOUNT","RATE_DAILY","PERIOD"]
[352150704,1738962643475,-500.0,0.00016438,2]
[352150706,1738962643487,-768.82,0.00016438,2]
[352150708,1738962643496,-500.0,0.00016438,2]
[352150710,1738962643506,-500.0,0.00016438,2]
[352150712,1738962643516,-500.0,0.00016438,2]
[352150714,1738962643526,-500.0,0.00016438,2]
[352150716,1738962643536,-500.0,0.00016438,2]
[352150718,1738962643545,-500.0,0.00016438,2]
[352150721,1738962643559,-2473.61,0.00016438,2]
[352150723,1738962643569,-500.0,0.00016438,2]
[352150725,1738962643579,-500.0,0.00016438,2]
[352150727,1738962643589,-2020.15,0.00016438,60]
[352150729,1738962643598,-500.0,0.00016438,2]
[352150731,1738962643608,-300.0,0.00016438,2]
[352150733,1738962643618,-500.0,0.00016438,2]
[352150735,1738962643628,-728.7,0.00016438,2]
[352150737,1738962643638,-500.0,0.00016438,2]
[352150739,1738962643647,-500.0,0.00016438,2]
[352150741,1738962643657,-500.0,0.00016438,2]
[352150743,1738962643667,-1296.94,0.00016438,2]
[352150745,1738962643676,-500.0,0.00016438,2]
[352150747,1738962643686,-500.0,0.00016438,2]
[352150749,1738962643696,-500.0,0.00016438,2]
[352150751,1738962643705,-460.74447194,0.00016438,2]
[352150753,1738962643716,-500.0,0.00016438,2]
[352150755,1738962643725,-273.321346,0.00016438,2]
[352150757,1738962643736,-500.0,0.00016438,2]
[352150759,1738962643746,-500.0,0.00016438,2]
[352150761,1738962643757,-3137.7514855,0.00016438,2]
[352150763,1738962643767,-500.0,0.00016438,2]
[352150765,1738962643776,-496.65448199,0.00016438,2]
[352150767,1738962643787,-621.35,0.00016438,2]
[352150770,1738962643797,-1120.97,0.00016438,2]
[352150772,1738962643807,-500.0,0.00016438,2]
[352150774,1738962643817,-2064.04,0.00016438,2]
[352150776,1738962643827,-511.30201049,0.00016438,2]
[352150778,1738962643837,-500.0,0.00016438,2]
[352150780,1738962643848,-500.0,0.00016438,2]
[352150782,1738962643859,-500.0,0.00016438,2]
[352150784,1738962643870,-702.25,0.00016438,2]
[352150786,1738962643880,-500.0,0.00016438,2]
[352150788,1738962643890,-1574.32,0.00016438,2]
[352150790,1738962643901,-500.0,0.00016438,2]
[352150792,1738962643910,-500.0,0.00016438,2]
[352150794,1738962643920,-500.0,0.00016438,2]
[352150796,1738962643930,-500.0,0.00016438,2]
[352150798,1738962643940,-500.0,0.00016438,2]
[352150800,1738962643950,-500.0,0.00016438,2]
[352150802,1738962643960,-500.0,0.00016438,2]
[352150804,1738962643970,-506.73778722,0.00016438,2]
[352150806,1738962643980,-747.26,0.00016438,2]
[352150808,1738962643990,-500.0,0.00016438,2]
[352150810,1738962644000,-500.0,0.00016438,2]
[352150812,1738962644013,-859.97,0.00016438,2]
[352150814,1738962644023,-500.0,0.00016438,2]
[352150816,1738962644033,-500.0,0.00016438,2]
[352150818,1738962644042,-500.0,0.00016438,2]
[352150820,1738962644052,-500.0,0.00016438,2]
[352150822,1738962644061,-500.0,0.00016438,2]
[352150824,1738962644071,-500.0,0.00016438,2]
[352150826,1738962644080,-500.0,0.00016438,2]
[352150828,1738962644090,-500.0,0.00016438,2]
[352150830,1738962644099,-980.14,0.00016438,2]
[352150832,1738962644109,-2024.91,0.00016438,2]
[352150834,1738962644118,-516.12113071,0.00016438,2]
[352150836,1738962644128,-500.0,0.00016438,2]
[352150838,1738962644138,-504.79781281,0.00016438,2]
[352150840,1738962644147,-500.0,0.00016438,2]
[352150842,1738962644157,-500.0,0.00016438,2]
[352150844,1738962644166,-500.0,0.00016438,2]
[352150846,1738962644176,-500.0,0.00016438,2]
[352150848,1738962644186,-500.0,0.00016438,2]
[352150850,1738962644195,-500.0,0.00016438,2]
[352150852,1738962644206,-500.0,0.00016438,2]
[352150854,1738962644216,-500.0,0.00016438,2]
[352150856,1738962644225,-500.0,0.00016438,2]
[352150858,1738962644235,-799.02,0.00016438,2]
[352150861,1738962644245,-895.75,0.00016438,2]
[352150863,1738962644255,-500.0,0.00016438,2]
[352150864,1738962644266,-2449.54,0.00016438,2]
[352150866,1738962644276,-500.0,0.00016438,2]
[352150868,1738962644286,-500.0,0.00016438,2]
[352150871,1738962644296,-500.0,0.00016438,2]
[352150873,1738962644306,-1857.42,0.00016438,2]
[352150875,1738962644316,-500.0,0.00016438,2]
[352150877,1738962644326,-500.0,0.00016438,2]
[352150879,1738962644337,-500.0,0.00016438,2]
[352150881,1738962644347,-500.0,0.00016438,2]
[352150883,1738962644356,-501.67726457,0.00016438,2]
[352150885,1738962644366,-500.0,0.00016438,2]
[352150887,1738962644376,-500.0,0.00016438,2]
[352150889,1738962644385,-500.0,0.00016438,2]
[352150891,1738962644395,-500.0,0.00016438,2]
[352150893,1738962644405,-500.0,0.00016438,2]
[352150895,1738962644415,-500.0,0.00016438,2]
[352150897,1738962644425,-500.0,0.00016438,2]
[352150899,1738962644434,-966.53,0.00016438,2]
[352150901,1738962644444,-500.0,0.00016438,2]
[352150903,1738962644454,-654.32,0.00016438,2]
[352150905,1738962644463,-500.0,0.00016438,2]
[352150907,1738962644474,-500.0,0.00016438,2]
[352150909,1738962644486,-500.0,0.00016438,2]
[352150911,1738962644496,-500.0,0.00016438,2]
[352150913,1738962644507,-500.0,0.00016438,2]
[352150916,1738962644519,-500.0,0.00016438,2]
[352150918,1738962644529,-500.0,0.00016438,2]
[352150919,1738962644538,-500.0,0.00016438,2]
[352150922,1738962644548,-1721.91,0.00016438,2]
[352150924,1738962644559,-631.74456245,0.00016438,2]
[352150926,1738962644569,-500.0,0.00016438,2]
[352150928,1738962644579,-500.0,0.00016438,2]
[352150930,1738962644589,-1123.91,0.00016438,2]
[352150932,1738962644600,-500.0,0.00016438,2]
[352150934,1738962644610,-500.0,0.00016438,2]
[352150936,1738962644619,-500.0,0.00016438,2]
[352150938,1738962644629,-889.11,0.00016438,2]
[352150940,1738962644639,-500.0,0.00016438,2]
[352150942,1738962644649,-500.0,0.00016438,2]
[352150944,1738962644659,-827.41,0.00016438,2]
[352150946,1738962644668,-500.0,0.00016438,2]
[352150948,1738962644679,-1364.97,0.00016438,2]
[352150950,1738962644689,-500.0,0.00016438,2]
[352150952,1738962644699,-500.0,0.00016438,2]
[352150954,1738962644709,-1333.39,0.00016438,2]
[352150956,1738962644719,-976.13,0.00016438,2]
[352150958,1738962644729,-500.0,0.00016438,2]
[352150960,1738962644739,-500.0,0.00016438,2]
[352150962,1738962644748,-500.0,0.00016438,2]
[352150964,1738962644758,-500.0,0.00016438,2]
[352150966,1738962644768,-500.0,0.00016438,2]
[352150968,1738962644778,-500.0,0.00016438,2]
[352150970,1738962644787,-553.76,0.00016438,2]
[352150972,1738962644797,-500.0,0.00016438,2]
[352150974,1738962644806,-500.0,0.00016438,2]
[352150976,1738962644816,-500.0,0.00016438,2]
[352150978,1738962644826,-500.0,0.00016438,2]
[352150980,1738962644836,-500.0,0.00016438,2]
[352150982,1738962644845,-500.0,0.00016438,2]
[352150984,1738962644856,-500.0,0.00016438,2]
[352150986,1738962644866,-500.0,0.00016438,2]
[352150988,1738962644876,-500.0,0.00016438,2]
[352150990,1738962644886,-500.0,0.00016438,2]
[352150992,1738962644897,-2369.56,0.00016438,2]
[352150994,1738962644906,-500.0,0.00016438,2]
[352150996,1738962644916,-300.0,0.00016438,2]
[352150998,1738962644926,-500.0,0.00016438,2]
[352151000,1738962644936,-666.75,0.00016438,2]
[352151003,1738962644945,-500.0,0.00016438,2]
[352151005,1738962644955,-500.69209217,0.00016438,2]
[352151007,1738962644964,-617.89375013,0.00016438,2]
[352151009,1738962644974,-500.0,0.00016438,2]
[352151011,1738962644983,-500.0,0.00016438,2]
[352151013,1738962644993,-500.0,0.00016438,2]
[352151015,1738962645004,-500.0,0.00016438,2]
[352151017,1738962645015,-1612.56,0.00016438,2]
[352151019,1738962645026,-500.0,0.00016438,2]
[352151021,1738962645037,-500.0,0.00016438,2]
[352151023,1738962645047,-500.0,0.00016438,2]
[352151025,1738962645057,-500.0,0.00016438,2]
[352151027,1738962645067,-500.0,0.00016438,7]
[352151029,1738962645077,-1375.74,0.00016438,2]
[352151031,1738962645087,-500.0,0.00016438,2]
[352151033,1738962645096,-500.0,0.00016438,2]
[352151035,1738962645106,-500.0,0.00016438,2]
[352151037,1738962645115,-500.0,0.00016438,2]
[352151039,1738962645125,-1207.96,0.00016438,2]
[352151041,1738962645135,-500.0,0.00016438,2]
[352151043,1738962645145,-500.0,0.00016438,2]
[352151045,1738962645155,-967.99,0.00016438,2]
[352151047,1738962645165,-710.04,0.00016438,2]
[352151049,1738962645175,-511.07268249,0.00016438,2]
[352151051,1738962645185,-500.0,0.00016438,2]
[352151053,1738962645195,-500.0,0.00016438,2]
[352151055,1738962645204,-720.58,0.00016438,2]
[352151057,1738962645214,-500.0,0.00016438,2]
[352151059,1738962645224,-500.0,0.00016438,2]
[352151061,1738962645233,-1554.01,0.00016438,2]
[352151063,1738962645243,-500.0,0.00016438,2]
[352151065,1738962645254,-500.0,0.00016438,2]
[352151067,1738962645264,-527.05,0.00016438,2]
[352151069,1738962645273,-500.0,0.00016438,2]
[352151071,1738962645283,-930.05,0.00016438,2]
[352151073,1738962645292,-500.0,0.00016438,2]
[352151075,1738962645302,-500.0,0.00016438,2]
[352151077,1738962645312,-500.0,0.00016438,2]
[352151079,1738962645321,-500.0,0.00016438,2]
[352151081,1738962645332,-500.0,0.00016438,2]
[352151083,1738962645341,-500.0,0.00016438,2]
[352151085,1738962645350,-500.0,0.00016438,2]
[352151087,1738962645359,-399.18092317,0.00016438,2]
[352151089,1738962645369,-500.0,0.00016438,2]
[352151091,1738962645378,-500.0,0.00016438,2]
[352151093,1738962645388,-500.0,0.00016438,2]
[352151095,1738962645398,-500.0,0.00016438,2]
[352151097,1738962645408,-500.0,0.00016438,2]
[352151099,1738962645418,-610.37,0.00016438,2]
[352151101,1738962645428,-419.48043793,0.00016438,2]
[352151103,1738962645437,-500.0,0.00016438,2]
[352151105,1738962645447,-500.0,0.00016438,2]
[352151107,1738962645457,-500.0,0.00016438,2]
[352151109,1738962645466,-500.41250337,0.00016438,2]
[352151111,1738962645475,-500.0,0.00016438,2]
[352151113,1738962645489,-501.84125354,0.00016438,2]
[352151115,1738962645499,-1932.29,0.00016438,2]
[352151117,1738962645509,-500.0,0.00016438,2]
[352151119,1738962645518,-500.0,0.00016438,2]
[352151121,1738962645529,-292.07409662,0.00016438,2]
[352151123,1738962645538,-1230.91,0.00016438,2]
[352151132,1738962645548,-504.72938353,0.00016438,2]
[352151133,1738962645628,-508.50356398,0.00016438,2]
[352151134,1738962645638,-500.0,0.00016438,2]
[352151135,1738962645648,-500.0,0.00016438,2]
[352151136,1738962645657,-171.77260929,0.00016438,2]
[352151137,1738962645667,-500.0,0.00016438,2]
[352151138,1738962645676,-500.0,0.00016438,2]
[352151139,1738962645686,-500.0,0.00016438,2]
[352151140,1738962645695,-224.378088,0.00016438,2]
[352151141,1738962645704,-500.0,0.00016438,2]
[352151142,1738962645713,-939.48,0.00016438,2]
[352151143,1738962645722,-500.0,0.00016438,2]
[352151144,1738962645731,-500.0,0.00016438,2]
[352151145,1738962645741,-500.0,0.00016438,2]
[352151147,1738962645751,-544.57,0.00016438,2]
[352151149,1738962645761,-956.99,0.00016438,2]
[352151150,1738962645771,-500.0,0.00016438,2]
[352151153,1738962645780,-233.5134663,0.00016438,2]
[352151154,1738962645789,-500.0,0.00016438,2]
[352151156,1738962645799,-500.0,0.00016438,2]
[352151158,1738962645809,-500.0,0.00016438,2]
[352151160,1738962645818,-500.0,0.00016438,2]
[352151162,1738962645828,-834.61,0.00016438,2]
[352151164,1738962645837,-868.83,0.00016438,2]
[352151166,1738962645846,-207.65378399,0.00016438,2]
[352151168,1738962645855,-600.11563072,0.00016438,2]
[352151170,1738962645865,-500.0,0.00016438,2]
[352151172,1738962645874,-690.02,0.00016438,2]
[352151174,1738962645883,-500.0,0.00016438,2]
[352151176,1738962645893,-500.0,0.00016438,2]
[352151178,1738962645902,-500.0,0.00016438,2]
[352151180,1738962645911,-500.0,0.00016438,2]
[352151182,1738962645920,-500.0,0.00016438,2]
[352151184,1738962645931,-500.0,0.00016438,2]
[352151186,1738962645940,-500.0,0.00016438,2]
[352151188,1738962645949,-500.0,0.00016438,2]
[352151190,1738962645958,-2103.5,0.00016438,2]
[352151192,1738962645967,-500.0,0.00016438,2]
[352151194,1738962645977,-500.0,0.00016438,2]
[352151196,1738962645986,-720.23,0.00016438,2]
[352151198,1738962645995,-506.52513416,0.00016438,2]
[352151200,1738962646005,-500.0,0.00016438,2]
[352151202,1738962646014,-500.0,0.00016438,2]
[352151204,1738962646024,-200.0,0.00016438,2]
[352151206,1738962646034,-615.46,0.00016438,2]
[352151208,1738962646043,-500.0,0.00016438,2]
[352151211,1738962646052,-500.0,0.00016438,2]
[352151214,1738962646062,-500.0,0.00016438,2]
[352151217,1738962646071,-500.0,0.00016438,2]
[352151220,1738962646081,-500.0,0.00016438,2]
[352151223,1738962646090,-500.0,0.00016438,2]
[352151226,1738962646099,-500.0,0.00016438,2]
[352151229,1738962646109,-500.0,0.00016438,2]
[352151232,1738962646118,-500.0,0.00016438,2]
[352151235,1738962646127,-500.0,0.00016438,2]
[352151238,1738962646136,-150.06740904,0.00016438,2]
[352151240,1738962646147,-500.0,0.00016438,2]
[352151243,1738962646157,-828.29,0.00016438,2]
[352151246,1738962646166,-500.0,0.00016438,2]
[352151249,1738962646175,-500.0,0.00016438,2]
[352151252,1738962646183,-586.60902966,0.00016438,2]
[352151255,1738962646192,-500.0,0.00016438,2]
[352151258,1738962646202,-500.0,0.00016438,2]
[352151261,1738962646212,-500.0,0.00016438,2]
[352151264,1738962646221,-500.0,0.00016438,2]
[352151267,1738962646230,-920.44,0.00016438,2]
[352151269,1738962646239,-665.63,0.00016438,2]
[352151270,1738962646248,-769.5,0.00016438,2]
[352151273,1738962646258,-500.0,0.00016438,2]
[352151275,1738962646267,-938.82,0.00016438,2]
[352151277,1738962646276,-500.0,0.00016438,2]
[352151278,1738962646285,-500.0,0.00016438,2]
[352151280,1738962646294,-500.0,0.00016438,2]
[352151282,1738962646303,-500.0,0.00016438,2]
[352151284,1738962646312,-500.0,0.00016438,2]
[352151286,1738962646322,-500.0,0.00016438,2]
[352151288,1738962646331,-500.0,0.00016438,2]
[352151290,1738962646341,-500.0,0.00016438,2]
[352151292,1738962646350,-500.0,0.00016438,2]
[352151294,1738962646359,-500.0,0.00016438,2]
[352151296,1738962646369,-500.0,0.00016438,2]
[352151298,1738962646378,-500.0,0.00016438,2]
[352151300,1738962646388,-500.0,0.00016438,2]
[352151302,1738962646397,-500.0,0.00016438,2]
[352151304,1738962646407,-500.0,0.00016438,2]
[352151306,1738962646417,-500.0,0.00016438,2]
[352151308,1738962646427,-500.0,0.00016438,2]
[352151310,1738962646437,-500.0,0.00016438,2]
[352151312,1738962646446,-500.0,0.00016438,2]
[352151314,1738962646455,-515.17,0.00016438,2]
[352151316,1738962646464,-500.0,0.00016438,2]
[352151318,1738962646473,-500.0,0.00016438,2]
[352151320,1738962646490,-500.0,0.00016438,2]
[352151322,1738962646499,-500.0,0.00016438,2]
[352151324,1738962646509,-602.87,0.00016438,2]
[352151326,1738962646519,-500.0,0.00016438,2]
[352151328,1738962646532,-500.0,0.00016438,2]
[352151330,1738962646541,-500.0,0.00016438,2]
[352151332,1738962646551,-500.0,0.00016438,2]
[352151334,1738962646563,-500.0,0.00016438,2]
[352151336,1738962646573,-500.0,0.00016438,2]
[352151338,1738962646582,-500.0,0.00016438,2]
[352151340,1738962646592,-500.0,0.00016438,2]
[352151342,1738962646601,-500.0,0.00016438,2]
[352151344,1738962646611,-500.0,0.00016438,2]
[352151346,1738962646620,-500.0,0.00016438,2]
[352151348,1738962646631,-500.0,0.00016438,2]
[352151350,1738962646641,-500.0,0.00016438,2]
[352151352,1738962646650,-363.01729774,0.00016438,2]
[352151354,1738962646659,-500.0,0.00016438,2]
[352151356,1738962646669,-500.0,0.00016438,2]
[352151358,1738962646679,-519.43757939,0.00016438,2]
[352151360,1738962646689,-273.321346,0.00016438,2]
[352151362,1738962646698,-500.0,0.00016438,2]
[352151364,1738962646708,-500.0,0.00016438,2]
[352151366,1738962646717,-827.6,0.00016438,2]
[352151368,1738962646726,-500.0,0.00016438,2]
[352151370,1738962646736,-500.0,0.00016438,2]
[352151372,1738962646745,-500.0,0.00016438,2]
[352151374,1738962646755,-598.56,0.00016438,2]
[352151376,1738962646764,-867.5,0.00016438,2]
[352151378,1738962646773,-500.0,0.00016438,2]
[352151380,1738962646783,-501.86246909,0.00016438,2]
[352151382,1738962646792,-500.0,0.00016438,2]
[352151384,1738962646802,-500.0,0.00016438,2]
[352151386,1738962646813,-500.0,0.00016438,2]
[352151388,1738962646825,-500.0,0.00016438,2]
[352151390,1738962646835,-500.0,0.00016438,2]
[352151392,1738962646845,-776.9,0.00016438,2]
[352151394,1738962646855,-500.0,0.00016438,2]
[352151396,1738962646864,-500.0,0.00016438,2]
[352151398,1738962646874,-500.0,0.00016438,2]
[352151400,1738962646884,-249.952365,0.00016438,2]
[352151402,1738962646894,-500.0,0.00016438,2]
[352151404,1738962646903,-983.25,0.00016438,2]
[352151406,1738962646913,-500.0,0.00016438,2]
[352151408,1738962646923,-500.0,0.00016438,2]
[352151410,1738962646933,-500.0,0.00016438,2]
[352151412,1738962646943,-825.95,0.00016438,2]
[352151414,1738962646952,-500.0,0.00016438,2]
[352151416,1738962646961,-500.0,0.00016438,2]
[352151418,1738962646970,-500.0,0.00016438,2]
[352151420,1738962646981,-500.0,0.00016438,2]
[352151422,1738962646989,-500.0,0.00016438,2]
[352151424,1738962646999,-1128.17,0.00016438,2]
[352151426,1738962647009,-500.0,0.00016438,2]
[352151428,1738962647018,-500.0,0.00016438,2]
[352151430,1738962647028,-500.0,0.00016438,2]
[352151432,1738962647037,-500.0,0.00016438,2]
[352151434,1738962647047,-500.0,0.00016438,2]
[352151436,1738962647057,-500.0,0.00016438,2]
[352151438,1738962647067,-500.0,0.00016438,2]
[352151440,1738962647077,-1139.5,0.00016438,2]
[352151442,1738962647086,-1633.64,0.00016438,2]
[352151444,1738962647096,-552.17986396,0.00016438,2]
[352151446,1738962647105,-500.0,0.00016438,2]
[352151448,1738962647115,-500.0,0.00016438,2]
[352151450,1738962647124,-500.0,0.00016438,2]
[352151452,1738962647134,-500.0,0.00016438,2]
[352151454,1738962647144,-500.0,0.00016438,2]
[352151456,1738962647153,-413.23000067,0.00016438,2]
[352151458,1738962647163,-979.8,0.00016438,2]
[352151460,1738962647173,-505.10791133,0.00016438,2]
[352151462,1738962647182,-500.0,0.00016438,2]
[352151464,1738962647191,-500.0,0.00016438,2]
[352151466,1738962647201,-500.0,0.00016438,2]
[352151468,1738962647211,-569.17,0.00016438,2]
[352151470,1738962647220,-500.0,0.00016438,2]
[352151472,1738962647229,-500.0,0.00016438,2]
[352151474,1738962647239,-500.0,0.00016438,2]
[352151476,1738962647249,-500.0,0.00016438,2]
[352151478,1738962647260,-494.24012294,0.00016438,2]
[352151480,1738962647269,-1028.87,0.00016438,2]
[352151482,1738962647279,-500.0,0.00016438,2]
[352151484,1738962647289,-500.0,0.00016438,2]
[352151486,1738962647298,-500.0,0.00016438,2]
[352151488,1738962647308,-500.0,0.00016438,2]
[352151490,1738962647318,-501.65988713,0.00016438,2]
[352151492,1738962647328,-2367.59,0.00016438,2]
[352151494,1738962647337,-602.1,0.00016438,2]
[352151496,1738962647347,-500.0,0.00016438,2]
[352151498,1738962647357,-555.04,0.00016438,2]
[352151500,1738962647366,-503.98314766,0.00016438,2]
[352151502,1738962647375,-500.0,0.00016438,2]
[352151504,1738962647385,-1865.44,0.00016438,2]
[352151506,1738962647394,-496.52094225,0.00016438,2]
[352151508,1738962647404,-920.57,0.00016438,2]
[352151510,1738962647413,-500.0,0.00016438,2]
[352151512,1738962647422,-500.0,0.00016438,2]
[352151514,1738962647432,-500.0,0.00016438,2]
[352151516,1738962647442,-914.41,0.00016438,2]
[352151518,1738962647451,-500.0,0.00016438,2]
[352151520,1738962647461,-500.0,0.00016438,2]
[352151522,1738962647470,-847.84,0.00016438,2]
[352151524,1738962647481,-500.0,0.00016438,2]
[352151526,1738962647492,-576.64,0.00016438,2]
[352151528,1738962647502,-500.0,0.00016438,2]
[352151530,1738962647512,-500.0,0.00016438,2]
[352151532,1738962647523,-500.0,0.00016438,2]
[352151535,1738962647534,-520.48,0.00016438,2]
[352151537,1738962647543,-500.0,0.00016438,2]
[352151539,1738962647553,-500.0,0.00016438,2]
[352151540,1738962647562,-500.0,0.00016438,2]
[352151542,1738962647572,-500.0,0.00016438,2]
[352151544,1738962647581,-273.321346,0.00016438,2]
[352151547,1738962647592,-500.0,0.00016438,2]
[352151549,1738962647601,-500.0,0.00016438,2]
[352151551,1738962647611,-500.0,0.00016438,2]
[352151553,1738962647622,-500.0,0.00016438,2]
[352151555,1738962647632,-500.0,0.00016438,2]
[352151557,1738962647641,-500.0,0.00016438,2]
[352151559,1738962647651,-612.68796512,0.00016438,2]
[352151561,1738962647660,-764.01,0.00016438,2]
[352151563,1738962647669,-502.23183785,0.00016438,2]
[352151565,1738962647678,-500.0,0.00016438,2]
[352151567,1738962647688,-1023.45,0.00016438,2]
[352151569,1738962647698,-500.0,0.00016438,2]
[352151570,1738962647707,-2139.32,0.00016438,2]
[352151572,1738962647716,-673.44,0.00016438,2]
[352151574,1738962647726,-500.46247755,0.00016438,2]
[352151577,1738962647736,-363.46228402,0.00016438,2]
[352151579,1738962647745,-500.0,0.00016438,2]
[352151581,1738962647754,-500.0,0.00016438,2]
[352151582,1738962647764,-500.0,0.00016438,2]
[352151584,1738962647773,-500.0,0.00016438,2]
[352151587,1738962647783,-249.952365,0.00016438,2]
[352151589,1738962647792,-500.0,0.00016438,2]
[352151590,1738962647802,-1744.48,0.00016438,2]
[352151592,1738962647811,-2158.33,0.00016438,2]
[352151594,1738962647820,-500.0,0.00016438,2]
[352151596,1738962647829,-500.0,0.00016438,2]
[352151598,1738962647838,-500.0,0.00016438,2]
[352151600,1738962647846,-500.0,0.00016438,2]
[352151602,1738962647855,-500.0,0.00016438,2]
[352151604,1738962647864,-511.51689646,0.00016438,2]
[352151606,1738962647873,-500.0,0.00016438,2]
[352151608,1738962647882,-1931.05,0.00016438,2]
[352151610,1738962647892,-1080.14,0.00016438,2]
[352151612,1738962647901,-500.0,0.00016438,2]
[352151614,1738962647909,-500.0,0.00016438,2]
[352151616,1738962647918,-500.0,0.00016438,2]
[352151618,1738962647928,-500.0,0.00016438,2]
[352151620,1738962647946,-1541.45,0.00016438,2]
[352151622,1738962647956,-326.11479742,0.00016438,2]
[352151624,1738962647966,-500.0,0.00016438,2]
[352151626,1738962647976,-500.0,0.00016438,2]
[352151628,1738962647985,-931.99,0.00016438,2]
[352151630,1738962647994,-747.37,0.00016438,2]
[352151632,1738962648004,-643.3657092,0.00016438,2]
[352151634,1738962648014,-500.0,0.00016438,2]
[352151636,1738962648025,-500.0,0.00016438,2]
[352151638,1738962648035,-500.0,0.00016438,2]
[352151640,1738962648045,-500.0,0.00016438,2]
[352151642,1738962648056,-500.0,0.00016438,2]
[352151644,1738962648067,-500.0,0.00016438,2]
[352151646,1738962648077,-1997.09,0.00016438,2]
[352151648,1738962648088,-500.0,0.00016438,2]
[352151650,1738962648098,-501.17104941,0.00016438,2]
[352151652,1738962648109,-500.0,0.00016438,2]
[352151654,1738962648120,-500.0,0.00016438,2]
[352151656,1738962648130,-627.47,0.00016438,2]
[352151658,1738962648140,-500.0,0.00016438,2]
[352151660,1738962648150,-500.0,0.00016438,2]
[352151662,1738962648160,-517.18456396,0.00016438,2]
[352151664,1738962648171,-672.89,0.00016438,2]
[352151666,1738962648181,-976.7,0.00016438,2]
[352151668,1738962648192,-500.0,0.00016438,2]
[352151670,1738962648202,-1569.59,0.00016438,2]
[352151672,1738962648212,-500.0,0.00016438,2]
[352151674,1738962648223,-500.0,0.00016438,2]
[352151676,1738962648233,-500.0,0.00016438,2]
[352151678,1738962648244,-500.0,0.00016438,2]
[352151680,1738962648255,-500.0,0.00016438,2]
[352151682,1738962648266,-500.0,0.00016438,2]
[352151684,1738962648276,-500.0,0.00016438,2]
[352151686,1738962648288,-500.0,0.00016438,2]
[352151689,1738962648299,-500.0,0.00016438,2]
[352151690,1738962648310,-500.0,0.00016438,2]
[352151692,1738962648322,-500.0,0.00016438,2]
[352151694,1738962648332,-500.0,0.00016438,2]
[352151696,1738962648343,-500.0,0.00016438,2]
[352151698,1738962648354,-650.0,0.00016438,2]
[352151700,1738962648365,-500.0,0.00016438,2]
[352151703,1738962648377,-500.0,0.00016438,2]
[352151705,1738962648387,-525.64871366,0.00016438,2]
[352151706,1738962648398,-1032.56,0.00016438,2]
[352151709,1738962648408,-500.0,0.00016438,2]
[352151710,1738962648419,-826.83,0.00016438,2]
[352151712,1738962648429,-500.0,0.00016438,2]
[352151714,1738962648440,-303.77583261,0.00016438,2]
[352151716,1738962648450,-500.0,0.00016438,2]
[352151718,1738962648460,-500.0,0.00016438,2]